[Event "9. Korbacher Open 2017"]
[Site "Korbach"]
[Date "2017.10.21"]
[Round "4"]
[White "Achermann, Didier"]
[Black "Alkayas, Shadi"]
[Result "0-1"]
[ECO "C61"]
[WhiteElo "1811"]
[BlackElo "1975"]
[Annotator "NA"]
[PlyCount "144"]
[EventDate "2017.??.??"]
[EventType "swiss"]
[EventCountry "GER"]
[SourceTitle "playchess.com"]
[Source "ChessBase"]
[SourceQuality "1"]
[TimeControl "40/5400+30:1800+30"]

{[%evp 9,94,5,91,90,105,111,200,-230,-238,-207,-214,-229,-6,-10,0,9,3,-54,-74,-19,-19,-38,0,32767,32767,32767,32767,32767,32767,-122,-104,-141,-152,32767,-248,32767,-322,-264,-119,-166,-113,-167,32767,-143,-119,-139,-94,-96,-68,-164,-150,-229,-136,-233,-149,32767,-4,0,32767,-3,71,108,119,0,32767,32767,4,0,0,0,0,32767,0,-36,-52,-51,32767,30,-28,-35,-26,32767,32767,-46,-48,-128,-167]} 1. e4 {[%emt 0:00:00]} e5 {[%emt 0:00:05]} 2. Nf3 {[%emt 0:00:00]} Nc6 {[%emt 0:00:29]} 3. Bb5 {[%emt 0:00:00]} Nd4 {[%emt 0:01:18]} 4. Bc4 {[%emt 0:01:57]} Bc5 {[%emt 0:02:10]} 5. O-O {[%emt 0:09:07]} ({Much worse is} 5. Nxe5 Qg5 $17) 5... d5 {[%emt 0:02:26] C64: Ruy Lopez: Classical Defence (3...Bc5) except 4 0-0 Nf6} (5... Nxf3+ $11 {hält das Gleichgewicht.} 6. Qxf3 Nf6 (6... Qf6 7. Qg3 d6 8. Nc3 c6 9. d3 Qg6 10. Qxg6 hxg6 11. Bd2 Nf6 12. Bb3 a5 13. a4 Ke7 14. Ne2 Bb6 15. Rae1 {0-1 (48) Bajarani,U (2504)-Bernadskiy,V (2565) Moscow 2014})) 6. Bxd5 {[%emt 0:01:22]} Bg4 {[%emt 0:00:43]} 7. Bxf7+ $1 {[%emt 0:05:15]} ({Not} 7. Bxb7 $2 Qf6 $19) 7... Kf8 {[%emt 0:00:01] [#]} (7... Ke7 $16) 8. c3 $4 $146 {[%emt 0:00:26] [#]} (8. Nxd4 $1 $18 Bxd1 9. Ne6+ Kxf7 10. Nxd8+ Rxd8 11. Rxd1) ({Predecessor:} 8. Bc4 Nxf3+ 9. Kh1 Nxh2 10. f3 Qh4 11. Qe1 Qh5 12. fxg4+ {1-0 (12) Toro Castaneda,E (1639)-Ocampo,D (1839) Medellin 2014}) 8... Nxf3+ $1 {[%emt 0:02:49]} 9. gxf3 {[%emt 0:00:08]} Bh3 {[%emt 0:00:30]} 10. d4 {[%emt 0:07:00]} Qf6 $2 {[%emt 0:06:21]} ({Black should play} 10... Kxf7 $19 11. f4 Qd6 12. Qh5+ Qg6+ 13. Qxg6+ hxg6) 11. Bh5 {[%emt 0:05:30]} g6 {[%emt 0:06:50]} 12. Bg4 {[%emt 0:01:10]} Bxf1 {[%emt 0:00:19]} 13. Kxf1 {[%emt 0:00:19]} exd4 {[%emt 0:03:58]} 14. cxd4 {[%emt 0:00:38]} Bxd4 {[%emt 0:02:23]} ({Better is} 14... h5 $17 15. Bh3 Bxd4) 15. Nc3 $1 {[%emt 0:00:53]} c6 {[%emt 0:02:25]} 16. Be3 {[%emt 0:25:55]} Rd8 {[%emt 0:03:11]} 17. Qe2 {[%emt 0:01:21]} Bxe3 {[%emt 0:05:04]} 18. fxe3 {[%emt 0:00:19]} h5 {[%emt 0:00:56]} 19. Bh3 {[%emt 0:00:09]} g5 {[%emt 0:03:04]} 20. Bg2 {[%emt 0:04:59]} Rh7 {[%emt 0:05:18]} 21. Rc1 {[%emt 0:01:25]} Rhd7 {[%emt 0:01:13]} 22. Rc2 {[%emt 0:00:08]} Nh6 {[%emt 0:03:00]} 23. Kg1 {[%emt 0:01:22]} Qd6 {[%emt 0:12:57]} ({Black should try} 23... Nf7 $19 24. Bh3 {[#]} g4 $1 {[%mdl 512]} 25. fxg4 Ng5) 24. Bf1 {[%emt 0:02:43]} Rf7 {[%emt 0:06:04]} 25. Bg2 {[%emt 0:00:32]} (25. Qg2 $17) 25... Qe6 {[%emt 0:06:36]} 26. Bf1 {[%emt 0:01:55]} Kg7 {[%emt 0:04:57]} 27. Bg2 {[%emt 0:00:28]} Ng8 {[%emt 0:01:59]} (27... Qd6 $142 28. Bf1 Qf6) 28. Qe1 {[%emt 0:02:09]} Ne7 {[%emt 0:02:15]} 29. Rf2 {[%emt 0:00:14]} (29. h4 $15) 29... Ng6 {[%emt 0:00:28]} 30. Qf1 {[%emt 0:02:01]} (30. Ne2 $17) 30... Rdf8 {[%emt 0:01:38]} 31. b3 {[%emt 0:00:43]} (31. Ne2 $17) 31... Nh4 {[%emt 0:03:45]} 32. f4 {[%emt 0:03:56]} g4 $2 {[%emt 0:03:48]} (32... Kh6 $19 33. f5 Qe5) 33. e5 {[%emt 0:02:57]} Nf5 {[%emt 0:01:42]} 34. Qe1 {[%emt 0:02:58]} g3 {[%emt 0:01:10]} (34... Rd7 $11) 35. hxg3 {[%emt 0:03:38]} Nxg3 {[%emt 0:00:12] [#]} 36. Ne4 {[%emt 0:06:37]} (36. Rd2 $1 $16 Qg4 37. Kh2 Qh4+ 38. Bh3) 36... Nxe4 {[%emt 0:01:54]} 37. Bxe4 {[%emt 0:00:09]} Kh8 {[%emt 0:02:39]} 38. Rh2 {[%emt 0:01:13]} Rg7+ {[%emt 0:01:00]} 39. Kh1 {[%emt 0:01:47]} Qg4 {[%emt 0:00:24]} 40. Rh4 {[%emt 0:01:02]} Qg3 {[%emt 0:31:22]} 41. Qxg3 {[%emt 0:31:11]} Rxg3 {[%emt 0:00:21]} 42. Rxh5+ {[%emt 0:00:15]} Kg7 {[%emt 0:01:12]} 43. Rh7+ {[%emt 0:03:29]} Kg8 {[%emt 0:00:04]} 44. Rxb7 {[%emt 0:00:10]} Rxe3 {[%emt 0:00:00]} 45. Bxc6 {[%emt 0:00:00]} Rxf4 {[%emt 0:00:00]} 46. Kg2 {[%emt 0:00:00]} Rxe5 {[%emt 0:00:00]} 47. Kg3 $17 {[%emt 0:00:00]} (47. Rxa7 $15 Rf6 48. Ra8+ Kf7 49. Ra7+ Kf8 50. Ra8+ Kg7 51. Ra7+ Kg6 52. Rc7) 47... Rf6 {[%emt 0:00:00]} 48. Ba4 {[%emt 0:00:00]} Rg5+ {[%emt 0:00:00]} 49. Kh4 {[%emt 0:00:00]} Rg1 {[%emt 0:00:00]} 50. Kh5 {[%emt 0:00:00]} Rf2 {[%emt 0:00:00]} 51. Rb4 {[%emt 0:00:00]} Rxa2 {[%emt 0:00:00]} 52. Rf4 {[%emt 0:00:00]} Rh2+ {[%emt 0:00:00]} 53. Rh4 {[%emt 0:00:00]} Rxh4+ {[%emt 0:00:00]} 54. Kxh4 {[%emt 0:00:00]} a5 {[%emt 0:00:00]} 55. Bd7 {[%emt 0:00:00]} Kg7 {[%emt 0:00:00]} 56. Bg4 {[%emt 0:00:00]} Kf6 {[%emt 0:00:00]} 57. Kh3 {[%emt 0:00:00]} Rb1 {[%emt 0:00:00]} 58. Kg3 {[%emt 0:00:00]} Rxb3+ {[%emt 0:00:00]} 59. Kf2 {[%emt 0:00:00]} Ke5 {[%emt 0:00:00]} 60. Bd1 {[%emt 0:00:00]} Rc3 {[%emt 0:00:00]} 61. Ke2 {[%emt 0:00:00]} Kd4 {[%emt 0:00:00]} 62. Kd2 {[%emt 0:00:00]} Kc4 {[%emt 0:00:00]} 63. Ba4 {[%emt 0:00:00]} Kb4 {[%emt 0:00:00]} 64. Be8 {[%emt 0:00:00]} Rc7 {[%emt 0:00:00]} 65. Bg6 {[%emt 0:00:00]} Ka3 {[%emt 0:00:00]} 66. Bf5 {[%emt 0:00:00]} Kb2 {[%emt 0:00:00]} 67. Be6 {[%emt 0:00:00]} Rc6 {[%emt 0:00:00]} 68. Bf7 {[%emt 0:00:00]} Rd6+ {[%emt 0:00:00]} 69. Ke3 {[%emt 0:00:00]} a4 {[%emt 0:00:00]} 70. Bc4 {[%emt 0:00:00]} a3 {[%emt 0:00:00]} 71. Bf7 {[%emt 0:00:00]} a2 {[%emt 0:00:00]} 72. Bxa2 {[%emt 0:00:00]} Kxa2 {[%emt 0:00:00] Kd4} 0-1

[Event "9. Korbacher Open 2017"]
[Site "Korbach"]
[Date "2017.10.21"]
[Round "4"]
[White "Hild, Sebastian"]
[Black "Schmidt, Matthias"]
[Result "1/2-1/2"]
[ECO "B72"]
[WhiteElo "1786"]
[BlackElo "2031"]
[Annotator "NA"]
[PlyCount "97"]
[EventDate "2017.??.??"]
[EventType "swiss"]
[EventCountry "GER"]
[SourceTitle "playchess.com"]
[Source "ChessBase"]
[SourceQuality "1"]
[TimeControl "40/5400+30:1800+30"]

{[%evp 13,81,18,30,22,34,8,17,0,3,4,1,-16,-13,-25,-16,-37,-40,-40,-50,32767,32767,32767,32767,32767,-243,-238,-233,-239,-50,-127,-93,32767,-100,-135,32767,-35,-32,-35,-34,-31,-35,-34,32767,-31,-13,-20,-21,-26,-14,32767,32767,32767,32767,-18,-22,-17,-15,-22,-12,-8,-8,32767,-2,0,32767,32767,0,-11,-10,-20]} 1. e4 {[%emt 0:00:00]} c5 {[%emt 0:00:27]} 2. Nf3 {[%emt 0:00:00]} Nc6 {[%emt 0:00:30]} 3. d4 {[%emt 0:00:01]} cxd4 {[%emt 0:00:31]} 4. Nxd4 {[%emt 0:00:02]} Nf6 {[%emt 0:00:34]} 5. Nc3 {[%emt 0:00:59]} d6 {[%emt 0:03:40]} 6. Be2 {[%emt 0:02:16]} g6 {[%emt 0:00:34]} 7. Be3 {[%emt 0:00:15]} Bg7 {[%emt 0:00:59]} 8. Qd2 {[%emt 0:01:06]} Ng4 {[%emt 0:06:39]} 9. Bxg4 {[%emt 0:02:39] LiveBook: 25 Games} Bxg4 {[%emt 0:00:05]} 10. f3 {[%emt 0:00:01]} Bd7 {[%emt 0:00:55] B72: Sicilian Dragon: 6 Be3, lines with h3+Bc4 and sidelines} 11. Nde2 {[%emt 0:06:43]} (11. h4 Ne5 12. b3 Rc8 13. h5 gxh5 14. Rxh5 Qa5 15. Nd5 Qxd2+ 16. Kxd2 e6 17. Nf4 Ng6 18. Nd3 {1-0 (48) Vachier Lagrave,M (2796)-Jones,G (2665) chess.com INT 2017}) 11... Qa5 {[%emt 0:14:23]} 12. Nd5 $146 {[%emt 0:09:16]} ({Predecessor:} 12. Bh6 O-O 13. h4 Rfc8 14. Bxg7 Kxg7 15. h5 g5 16. h6+ Kg8 17. f4 gxf4 18. Nxf4 {½-½ (59) Olape,B (2245)-Rakotomaharo,Y (1977) Maputo 2011}) 12... Qxd2+ {[%emt 0:02:05]} 13. Bxd2 {[%emt 0:00:21]} Rc8 {[%emt 0:02:24]} 14. c3 {[%emt 0:03:05]} Ne5 {[%emt 0:12:58]} 15. O-O {[%emt 0:09:34]} Bb5 {[%emt 0:01:57]} 16. Rf2 {[%emt 0:08:19]} Nd3 {[%emt 0:02:54]} 17. Nd4 {[%emt 0:01:54]} Bxd4 {[%emt 0:02:20]} 18. cxd4 {[%emt 0:00:15]} Nxf2 {[%emt 0:01:08]} 19. Kxf2 {[%emt 0:00:02]} Rc2 {[%emt 0:03:57]} 20. Ke1 {[%emt 0:03:34]} Bc6 $2 {[%emt 0:06:54]} ({Günstiger ist} 20... Rxb2 $19 21. a4 Bc6) 21. Nb4 {[%emt 0:06:13]} (21. Ne3 $15 Rxb2 22. Bc3) 21... Rxb2 {[%emt 0:02:07]} 22. d5 {[%emt 0:00:54]} Bb5 {[%emt 0:06:36]} 23. a4 {[%emt 0:05:00]} Rxb4 {[%emt 0:15:01]} 24. Bxb4 {[%emt 0:00:53]} Ba6 {[%emt 0:00:49]} 25. Bc3 {[%emt 0:02:42]} O-O {[%emt 0:02:12]} 26. Bd4 {[%emt 0:00:46]} f5 {[%emt 0:00:48]} 27. Kd2 {[%emt 0:02:06]} fxe4 {[%emt 0:01:08]} 28. fxe4 {[%emt 0:00:16]} Rc8 {[%emt 0:00:30]} 29. Bxa7 {[%emt 0:05:43]} Rc4 {[%emt 0:00:52]} 30. Ke3 {[%emt 0:00:31]} Rc2 {[%emt 0:01:13]} 31. Kf3 {[%emt 0:02:31]} Be2+ {[%emt 0:02:13]} 32. Kf4 {[%emt 0:01:30]} Bc4 {[%emt 0:02:41]} 33. Kf3 {[%emt 0:02:49]} g5 {[%emt 0:00:52]} 34. h3 {[%emt 0:00:44]} Kg7 {[%emt 0:01:46]} 35. a5 {[%emt 0:00:52]} Kg6 {[%emt 0:00:16]} 36. Re1 {[%emt 0:06:09]} h5 {[%emt 0:00:42]} 37. Be3 {[%emt 0:13:57]} h4 {[%emt 0:00:47]} 38. Rc1 {[%emt 0:01:46]} Be2+ {[%emt 0:00:51]} 39. Kf2 {[%emt 0:00:01]} Ra2 {[%emt 0:00:28]} 40. Bb6 {[%emt 0:00:52]} Bd3+ {[%emt 0:31:10]} 41. Kf3 $11 {[%emt 0:33:04]} Ba6 {[%emt 0:00:00]} 42. Re1 {[%emt 0:00:00]} Ra3+ {[%emt 0:00:00]} 43. Re3 {[%emt 0:00:00]} Ra1 {[%emt 0:00:00]} 44. Rb3 {[%emt 0:00:00]} Ra2 {[%emt 0:00:00]} 45. Re3 {[%emt 0:00:00]} Bf1 {[%emt 0:00:00]} 46. g3 {[%emt 0:00:00]} Bg2+ {[%emt 0:00:00]} 47. Kg4 {[%emt 0:00:00]} Ra4 {[%emt 0:00:00]} 48. gxh4 {[%emt 0:00:00]} gxh4 {[%emt 0:01:04]} 49. Kf4 1/2-1/2

[Event "9. Korbacher Open 2017"]
[Site "Korbach"]
[Date "2017.10.21"]
[Round "4"]
[White "Aardenburg, Piet"]
[Black "Buese, Ralf"]
[Result "1/2-1/2"]
[ECO "C01"]
[WhiteElo "1782"]
[BlackElo "1892"]
[Annotator "NA RC"]
[PlyCount "28"]
[EventDate "2017.??.??"]
[EventType "swiss"]
[EventCountry "GER"]
[SourceTitle "playchess.com"]
[Source "ChessBase"]
[SourceQuality "1"]
[TimeControl "40/5400+30:1800+30"]

{[%evp 8,28,22,19,20,4,14,16,33,24,18,0,0,-16,5,5,0,0,0,-7,-5,-25,-14]} 1. e4 {[%emt 0:00:00]} e6 {[%emt 0:00:08]} 2. d4 {[%emt 0:00:12]} d5 {[%emt 0:00:18]} 3. exd5 {[%emt 0:02:32]} exd5 {[%emt 0:00:02]} 4. Bd3 {[%emt 0:00:59]} Nc6 {[%emt 0:01:02]} 5. c3 {[%emt 0:01:35]} Bd6 {[%emt 0:01:12]} 6. Nf3 {[%emt 0:05:57]} Nge7 {[%emt 0:02:34]} 7. O-O {[%emt 0:01:48]} Bg4 {[%emt 0:01:55]} 8. Nbd2 {[%emt 0:02:17]} Qd7 {[%emt 0:03:27] LiveBook: 61 Games} 9. b4 {[%emt 0:01:50]} O-O {[%emt 0:03:48]} 10. Qc2 {[%emt 0:02:24]} Bf5 {[%emt 0:01:29]} 11. Re1 {[%emt 0:02:18]} Bxd3 {[%emt 0:10:22]} 12. Qxd3 {[%emt 0:00:03]} Ng6 {[%emt 0:00:49]} 13. Nf1 {[%emt 0:04:35]} Nce7 {[%emt 0:15:36]} 14. Ng3 {[%emt 0:06:57]} c6 $11 {[%emt 0:08:39]} 1/2-1/2

[Event "9. Korbacher Open 2017"]
[Site "Korbach"]
[Date "2017.10.21"]
[Round "4"]
[White "Rehbein, Ullrich"]
[Black "Shkolnyk, Boris"]
[Result "0-1"]
[ECO "C00"]
[WhiteElo "1778"]
[BlackElo "1812"]
[Annotator "NA"]
[PlyCount "64"]
[EventDate "2017.??.??"]
[EventType "swiss"]
[EventCountry "GER"]
[SourceTitle "playchess.com"]
[Source "ChessBase"]
[SourceQuality "1"]
[TimeControl "40/5400+30:1800+30"]

{[%evp 8,64,-14,32767,-18,-16,-18,-3,-6,-27,42,-4,0,-8,-22,-68,-33,-28,0,-36,-29,32767,-18,-156,-146,-131,-67,-95,10,32767,32767,32767,32767,-119,32767,32767,-109,-122,-149,-174,-203,-199,-188,32767,-560,-549,-577,-567,-516,-395,-345,-502,32767,32767,-273,-279,-262,-1204,-1318]} 1. e4 {[%emt 0:02:20]} e6 {[%emt 0:00:11]} 2. Qe2 {[%emt 0:00:22]} c5 {[%emt 0:01:35]} 3. Nf3 {[%emt 0:01:29]} Nc6 {[%emt 0:00:29]} 4. g3 {[%emt 0:00:06]} g6 {[%emt 0:01:28]} 5. Bg2 {[%emt 0:00:23]} Bg7 {[%emt 0:00:26]} 6. O-O {[%emt 0:00:22]} Nge7 {[%emt 0:01:30]} 7. d3 {[%emt 0:03:06] LiveBook: 112 Games} O-O {[%emt 0:02:23]} 8. Nbd2 {[%emt 0:06:25] C00: French: Unusual White 2nd moves} b5 {[%emt 0:01:30]} (8... d5 $15) (8... e5 9. c3 d5 10. exd5 Nxd5 11. Nb3 b6 12. d4 exd4 13. cxd4 Re8 14. Qc4 {0-1 (42) Dvoirys,S (2584)-Baron,T (2506) Rishon Le Ziyyon 2015}) 9. a4 {[%emt 0:02:54]} b4 $1 {[%emt 0:02:01]} 10. Nb3 $146 {[%emt 0:07:04]} ({Predecessor:} 10. e5 Nf5 11. Nb3 Rb8 12. g4 Nfd4 13. Nfxd4 Nxd4 14. Nxd4 cxd4 15. f4 d6 16. exd6 {1-0 (26) Elfimov,K (1976)-Naletov,A (2050) Voronezh 2006}) 10... d6 {[%emt 0:02:19]} 11. Rd1 {[%emt 0:07:02]} ({Lieber} 11. e5 $11) 11... a5 {[%emt 0:02:49]} 12. e5 {[%emt 0:07:47]} dxe5 {[%emt 0:05:03]} 13. Nxc5 {[%emt 0:02:33]} Qc7 {[%emt 0:03:09]} 14. Bd2 {[%emt 0:07:29]} Nd5 {[%emt 0:00:48]} 15. Rab1 {[%emt 0:03:50]} (15. Nb3 $11 {keeps the balance.}) 15... Nd4 {[%emt 0:01:29]} 16. Nxd4 {[%emt 0:01:04]} Qxc5 {[%emt 0:01:34]} (16... exd4 $17 17. Ne4 h6) 17. Nf3 {[%emt 0:03:26]} Qc7 {[%emt 0:00:58]} ({Better is} 17... Qxc2 $17 18. Nxe5 Qxa4) 18. h4 {[%emt 0:07:36]} h6 {[%emt 0:03:26]} 19. Re1 {[%emt 0:00:38]} Qxc2 {[%emt 0:04:03]} 20. Rec1 {[%emt 0:03:04]} Qxa4 {[%emt 0:00:38]} 21. Nxe5 {[%emt 0:01:18]} Qb5 {[%emt 0:00:49]} 22. Nc4 {[%emt 0:05:33]} Rd8 {[%emt 0:06:32]} 23. Be4 {[%emt 0:05:54]} Bb7 {[%emt 0:07:14]} 24. g4 {[%emt 0:05:22]} Ra6 {[%emt 0:10:57]} 25. Qf3 {[%emt 0:01:40]} f5 {[%emt 0:03:08]} 26. gxf5 {[%emt 0:02:16]} exf5 {[%emt 0:02:05]} 27. Bxd5+ {[%emt 0:05:12]} Bxd5 {[%emt 0:01:44]} 28. Qg3 {[%emt 0:02:19]} Ba8 {[%emt 0:01:53]} 29. Re1 {[%emt 0:02:53]} (29. Bf4 {is a better defense.}) 29... Qd5 {[%emt 0:01:55]} 30. Kh2 {[%emt 0:00:21]} Kh7 {[%emt 0:08:53]} 31. Re7 {[%emt 0:01:07]} Rd7 {[%emt 0:05:12]} ({Finger weg von} 31... Qxd3 32. Qc7 $19) 32. Rbe1 $2 {[%emt 0:00:49]} (32. Rxd7 Qxd7 33. Rg1) 32... Rxe7 $19 {[%emt 0:04:23]} 0-1

[Event "9. Korbacher Open 2017"]
[Site "Korbach"]
[Date "2017.10.21"]
[Round "4"]
[White "Deutsch, Christoph"]
[Black "Stahnke, Thorsten"]
[Result "0-1"]
[ECO "B35"]
[WhiteElo "1755"]
[BlackElo "2026"]
[Annotator "NA RC"]
[PlyCount "96"]
[EventDate "2017.??.??"]
[EventType "swiss"]
[EventCountry "GER"]
[SourceTitle "playchess.com"]
[Source "ChessBase"]
[SourceQuality "1"]
[TimeControl "40/5400+30:1800+30"]

{[%evp 16,96,41,37,40,33,39,-61,-44,-84,-109,-135,-127,-309,-301,-317,-332,-317,-328,-307,-343,-361,-328,-335,-335,-325,-192,-267,32767,-287,-322,32767,32767,32767,-264,32767,32767,32767,-313,-281,-300,-320,-362,32767,-409,32767,-411,-460,-509,32767,-537,-495,-445,-529,-529,-531,-602,32767,32767,-572,-656,-677,32767,-1137,-2147,-1154,-1473,-1306,-899,-919,-1083,-1114,32767,32767,32767,-964,-1062,-1058,32767,-12834,-29984,-29989,-29990]} 1. e4 {[%emt 0:00:00]} c5 {[%emt 0:00:18]} 2. Nf3 {[%emt 0:00:00]} Nc6 {[%emt 0:00:06]} 3. d4 {[%emt 0:00:02]} cxd4 {[%emt 0:00:09]} 4. Nxd4 {[%emt 0:00:11]} g6 {[%emt 0:00:12]} 5. Nc3 {[%emt 0:00:45]} Bg7 {[%emt 0:00:17]} 6. Be3 {[%emt 0:00:38]} Nf6 {[%emt 0:00:21]} 7. Bc4 {[%emt 0:00:56]} Qa5 {[%emt 0:03:52]} 8. O-O {[%emt 0:01:32]} O-O {[%emt 0:01:03]} 9. Bb3 {[%emt 0:00:56]} d6 {[%emt 0:01:32]} 10. h3 {[%emt 0:01:23]} Bd7 {[%emt 0:03:24]} 11. Qd2 {[%emt 0:03:55]} (11. Re1 $14) 11... Nxd4 $1 {[%emt 0:05:24] LiveBook: 11 Games B35: Sicilian: Accelerated Dragon with 5 Nc3: main line} 12. Bxd4 {[%emt 0:03:42] [#]} Nxe4 $1 {[%emt 0:00:52]} 13. Nxe4 {[%emt 0:02:03]} (13. Qe3 Bxd4 14. Qxe4 Bxc3 15. bxc3 Qg5 16. h4 Qf6 17. Qxb7 Bf5 18. Rfe1 e6 19. Qb4 {0-1 (70) Hou,Y (2584)-Bacrot,E (2721) Villarrobledo 2009}) 13... Qxd2 {[%emt 0:00:14]} 14. Bxg7 $2 $146 {[%emt 0:02:58]} ({Predecessor:} 14. Nxd2 $17 Bxd4 15. c3 Bg7 16. Rfe1 e6 17. Rad1 d5 18. Nf3 Rfd8 19. Rd2 {0-1 (34) Walentukiewicz,M (2182)-Smirnov,A (2235) Rewal 2006}) 14... Qf4 {[%emt 0:02:18]} 15. Bxf8 {[%emt 0:01:04]} Kxf8 {[%emt 0:00:49]} ({But not} 15... Rxf8 16. Rfe1 $19) 16. Rfe1 {[%emt 0:01:18]} Bc6 {[%emt 0:00:44]} 17. Ng3 {[%emt 0:01:19]} h5 {[%emt 0:05:18]} 18. Re2 {[%emt 0:04:48]} d5 {[%emt 0:22:17]} 19. Rae1 {[%emt 0:03:18]} e6 {[%emt 0:00:19]} 20. c3 {[%emt 0:01:31]} Ba4 {[%emt 0:00:53]} (20... Rd8 $142 21. Nf1 a5) 21. Re3 {[%emt 0:06:25]} (21. Nxh5 {is a better defense.} Qh4 22. Ng3) 21... Bxb3 {[%emt 0:02:23]} 22. axb3 {[%emt 0:01:20]} a5 {[%emt 0:00:44]} 23. Ne2 {[%emt 0:00:49]} Qb8 {[%emt 0:03:38]} 24. Nd4 {[%emt 0:01:12]} a4 {[%emt 0:02:29]} 25. bxa4 {[%emt 0:05:49]} Rxa4 {[%emt 0:00:16]} 26. Nf3 {[%emt 0:00:39]} Ra2 {[%emt 0:04:48]} 27. R3e2 {[%emt 0:02:05]} Qa7 {[%emt 0:01:10]} 28. Nd4 {[%emt 0:03:15]} Ra1 {[%emt 0:01:26]} 29. Rxa1 {[%emt 0:01:39]} Qxa1+ {[%emt 0:00:11]} 30. Kh2 {[%emt 0:00:15]} Qc1 {[%emt 0:00:46]} 31. g3 {[%emt 0:00:39]} Qf1 {[%emt 0:02:19]} 32. Rd2 {[%emt 0:01:20]} Ke7 {[%emt 0:02:09]} 33. Nf3 {[%emt 0:00:59]} Kf6 {[%emt 0:04:53]} 34. h4 {[%emt 0:01:22]} e5 {[%emt 0:03:41]} 35. Ng1 {[%emt 0:04:22]} Ke6 {[%emt 0:03:14]} 36. Nf3 {[%emt 0:02:21]} f6 {[%emt 0:00:25]} 37. Ng1 {[%emt 0:01:19]} g5 {[%emt 0:01:14]} 38. hxg5 {[%emt 0:01:08]} fxg5 {[%emt 0:00:07]} 39. Nh3 {[%emt 0:00:36]} g4 {[%emt 0:02:53]} 40. Ng1 {[%emt 0:03:57]} Kd6 {[%emt 0:32:24]} 41. Re2 {[%emt 0:30:45]} e4 {[%emt 0:03:39]} 42. Rd2 {[%emt 0:01:10]} Kc5 {[%emt 0:00:14]} 43. Re2 {[%emt 0:01:36]} b6 {[%emt 0:01:46]} 44. Rd2 {[%emt 0:00:53]} b5 {[%emt 0:00:08]} 45. b3 {[%emt 0:04:28]} Qc1 {[%emt 0:00:45]} 46. b4+ {[%emt 0:01:08]} Kd6 {[%emt 0:01:40]} 47. Rd4 {[%emt 0:03:25]} Qxc3 {[%emt 0:01:25]} 48. Ne2 {[%emt 0:02:54]} Qe1 {[%emt 0:00:12]} 0-1

[Event "9. Korbacher Open 2017"]
[Site "Korbach"]
[Date "2017.10.21"]
[Round "4"]
[White "Meyer, Marcel"]
[Black "Lehmann, Tim"]
[Result "1-0"]
[ECO "E97"]
[WhiteElo "1740"]
[BlackElo "1865"]
[Annotator "NA"]
[PlyCount "75"]
[EventDate "2017.??.??"]
[EventType "swiss"]
[EventCountry "GER"]
[SourceTitle "playchess.com"]
[Source "ChessBase"]
[SourceQuality "1"]
[TimeControl "40/5400+30:1800+30"]

{[%evp 8,69,39,41,46,37,31,40,61,45,61,32767,42,19,25,6,36,30,67,47,72,48,42,38,46,31,62,0,29,32767,32767,32767,9,-30,32767,-76,32767,32767,-161,-153,-66,-58,-70,-65,-71,-88,-98,-109,0,-272,32767,-1137,-229,-272,-10,-168,-155,-533,-75,-74,-62,-58,32767,112]} 1. d4 {[%emt 0:00:00]} Nf6 {[%emt 0:00:10]} 2. c4 {[%emt 0:00:00]} g6 {[%emt 0:00:08]} 3. Nc3 {[%emt 0:00:01]} Bg7 {[%emt 0:00:08]} 4. e4 {[%emt 0:00:06]} d6 {[%emt 0:00:10]} 5. Nf3 {[%emt 0:00:07]} O-O {[%emt 0:00:13]} 6. Be2 {[%emt 0:00:05]} e5 {[%emt 0:03:48]} 7. O-O {[%emt 0:00:08]} Nc6 {[%emt 0:00:07]} 8. d5 {[%emt 0:00:06]} Ne7 {[%emt 0:00:07]} 9. b4 {[%emt 0:00:38]} Nd7 {[%emt 0:02:06]} 10. Ne1 {[%emt 0:08:46]} f5 {[%emt 0:00:27] E97: King's Indian: Classical Main Line (6...e5 7 0-0 Nc6): 8 Be3 and 8 d5 Ne7, not 9 Ne1} 11. Nd3 {[%emt 0:00:18]} Nf6 {[%emt 0:03:03]} 12. f3 {[%emt 0:02:21]} f4 {[%emt 0:10:38]} 13. c5 {[%emt 0:06:46]} (13. a4 g5 14. a5 Ng6 15. c5 Rf7 16. c6 h5 17. cxb7 Bxb7 18. b5 Bc8 19. Nf2 Bh6 20. Ra4 {0-1 (33) Granda Zuniga,J (2640)-Milos,G (2593) Quito 2012}) 13... g5 {[%emt 0:03:27] LiveBook: 5 Games} 14. Ba3 {[%emt 0:04:40]} Ng6 {[%emt 0:03:47]} 15. Rc1 {[%emt 0:03:43]} Rf7 {[%emt 0:05:47]} 16. Nf2 {[%emt 0:04:47]} h5 {[%emt 0:07:14]} 17. b5 {[%emt 0:06:02]} (17. h3 $14) 17... b6 $146 {[%emt 0:08:54]} ({Predecessor:} 17... Bf8 18. c6 b6 19. Bb4 Rg7 20. Nd3 g4 {½-½ (91) Severcan,S (1842)-Unver,C (2074) Konya 2016}) 18. cxd6 {[%emt 0:11:13]} cxd6 {[%emt 0:02:42]} 19. Bb2 {[%emt 0:00:01]} Bf8 {[%emt 0:07:36]} 20. a4 {[%emt 0:02:05]} Rg7 {[%emt 0:02:04]} 21. Na2 {[%emt 0:01:00]} (21. h3 $11 {hält das Gleichgewicht.}) 21... Nh4 {[%emt 0:03:15]} 22. Nb4 {[%emt 0:03:17] [#]} g4 $1 {[%emt 0:02:48]} 23. fxg4 {[%emt 0:06:30]} Bxg4 {[%emt 0:02:48]} 24. Nxg4 {[%emt 0:01:51]} Nxg4 {[%emt 0:00:46]} 25. Bxg4 {[%emt 0:04:29]} Rxg4 {[%emt 0:00:53]} 26. Rf2 {[%emt 0:06:42]} Qg5 {[%emt 0:03:40]} 27. Qc2 {[%emt 0:03:58] [#]} Rd8 {[%emt 0:04:44]} (27... f3 $1 $17 28. g3 Qg6) 28. Rcf1 $2 {[%emt 0:05:17]} (28. Kh1 $11 {and White is okay.}) 28... Rd7 {[%emt 0:11:06]} 29. g3 $2 {[%emt 0:04:23]} (29. Kh1 $11) 29... Rg7 $2 {[%emt 0:00:40]} (29... fxg3 30. Rxf8+ Kh7 31. R1f7+ Rxf7 32. Rxf7+ Kg6 33. hxg3 Rxg3+ 34. Kf1 Kxf7 35. Qc7+ Kg8 36. Qb8+ Kg7 37. Qxa7+ Kg6 38. Qxb6 Qf4+ 39. Qf2 Rf3) 30. Kh1 {[%emt 0:02:21] [#]} Be7 $2 {[%emt 0:05:50]} (30... Ng6 $1 $19 31. Qc1 fxg3 32. Qxg5 Rxg5 33. hxg3 Rg4) 31. Bc1 $2 {[%emt 0:04:59]} (31. Rxf4 $1 $11 exf4 32. Qc8+ Bd8 33. Bxg7 fxg3 34. Qe6+ Kh7 35. hxg3) 31... Qg6 {[%emt 0:00:21]} 32. Nc6 $2 {[%emt 0:02:39]} (32. Bxf4 exf4 33. Rxf4 Rxf4 34. Rxf4) 32... Bf6 $17 {[%emt 0:01:58]} (32... fxg3 $19 {and Black stays clearly on top.} 33. Nxe7+ Rxe7 34. Rf8+ Kg7) 33. Bxf4 $1 {[%emt 0:00:53]} exf4 {[%emt 0:02:29]} 34. Rxf4 {[%emt 0:00:21]} Be5 {[%emt 0:01:07]} 35. Nxe5 {[%emt 0:01:40]} dxe5 {[%emt 0:00:03]} 36. Qc8+ {[%emt 0:00:28]} Kh7 {[%emt 0:00:13]} 37. Rxg4 hxg4 38. Qc2 1-0